bitfinex/quotes_ETHUSD_20240612
["timestamp","ask_amount","ask_price","bid_price","bid_amount"]
[1718223306162,6.8619,3548.9,3548.3,0.858]
[1718223306324,0.03393872,3548.4,3547.2,3.0]
[1718223306525,0.01987093,3548.7,3548.3,0.858]
[1718223306870,0.87738989,3549.7,3549.3,2.81745]
[1718223307070,0.87738989,3549.7,3548.6,0.858]
[1718223307071,1.34751206,3549.9,3549.6,3.67521]
[1718223307230,7.3696,3550.6,3549.8,0.858]
[1718223307420,7.3696,3550.6,3548.9,5.81771]
[1718223307421,0.84456992,3550.5,3550.4,0.858]
[1718223308346,1.73538989,3551.4,3550.4,0.858]
[1718223308347,7.84408989,3551.4,3550.4,0.858]
[1718223308665,0.65915765,3553.2,3549.6,4.4941]
[1718223308666,7.2648,3553.0,3551.3,0.858]
[1718223308873,7.2648,3553.0,3551.5,2.055]
[1718223308874,0.01987093,3552.9,3551.5,2.055]
[1718223309166,0.72846709,3552.8,3551.5,2.055]
[1718223309463,0.72846709,3552.8,3550.6,3.0]
[1718223309464,0.01987093,3552.7,3550.9,2.055]
[1718223309692,0.01987093,3552.7,3550.0,7.46]
[1718223309693,2.969,3552.5,3550.0,7.46]
[1718223309971,2.969,3551.7,3549.5,0.27947377]
[1718223310173,0.01987093,3552.4,3549.5,0.27947377]
[1718223310174,7.3117,3551.3,3549.5,0.27947377]
[1718223310376,2.055,3551.0,3549.5,0.27947377]
[1718223310669,7.3117,3551.3,3549.6,0.05634191]
[1718223310670,0.01987093,3550.9,3549.6,0.05634191]
[1718223310984,0.01987093,3550.9,3549.8,2.055]
[1718223311272,0.01987093,3550.9,3550.2,2.055]
[1718223311580,1.23977,3551.6,3550.2,2.26613327]
[1718223311771,7.4375,3552.0,3550.6,2.055]
[1718223311772,0.01987093,3551.5,3550.6,2.055]
[1718223312360,0.01987093,3551.5,3550.2,0.21113327]
[1718223312361,0.01987093,3551.5,3550.2,2.26613327]
[1718223312585,0.01987093,3551.5,3550.3,0.05632446]
[1718223312768,0.01987093,3551.5,3549.2,2.81752]
[1718223312769,1.43344514,3551.4,3549.6,5.055]
[1718223312972,1.45331607,3551.3,3549.4,5.055]
[1718223313172,1.43344514,3550.7,3548.3,8.04915548]
[1718223313368,0.01987093,3550.6,3548.9,2.055]
[1718223313656,1.57877675,3550.5,3549.3,2.055]
[1718223313992,6.7872,3551.2,3549.0,0.25455992]
[1718223313993,0.02980412,3550.4,3549.7,2.055]
[1718223314292,0.01987093,3551.1,3549.0,4.6996]
[1718223314503,0.01987093,3551.1,3549.4,2.055]
[1718223314504,1.46353921,3551.0,3549.4,2.055]
[1718223314662,0.01987093,3550.9,3549.5,0.02316717]
[1718223314864,1.46344257,3550.8,3549.4,2.055]
[1718223315063,0.01987093,3550.7,3549.5,0.2055]
[1718223315392,0.14833135,3550.8,3549.6,0.02000372]
[1718223315598,0.01987093,3551.1,3549.8,2.055]
[1718223315833,6.7927,3552.5,3550.8,2.055]
[1718223316098,1.48491482,3552.4,3550.9,0.05631699]
[1718223316257,1.48491482,3552.4,3551.2,2.055]
[1718223316452,1.46504389,3552.4,3551.2,2.055]
[1718223316767,1.46504389,3552.4,3550.6,2.81636]
[1718223316768,0.03159875,3552.4,3551.6,2.055]
[1718223317095,7.1821,3553.1,3551.7,0.05630538]
[1718223317096,0.01987093,3553.0,3551.7,0.05630538]
[1718223317272,1.43344514,3552.9,3551.8,0.05630286]
[1718223317595,0.0321828,3552.8,3551.8,0.05630286]
[1718223318096,0.01987093,3553.0,3551.8,0.05630286]
[1718223318256,2.15364223,3552.9,3551.6,2.055]
[1718223318456,0.05278479,3552.8,3551.0,3.0]
[1718223318687,1.45331607,3552.8,3551.5,2.055]
[1718223318877,0.03286559,3552.7,3551.6,0.05630127]
[1718223319087,0.21865078,3552.6,3551.5,2.055]
[1718223319293,0.03282417,3552.5,3551.5,2.055]
[1718223319676,1.48614024,3552.5,3551.5,2.055]
[1718223319999,1.43344514,3552.4,3551.2,3.0]
[1718223320308,0.03279196,3552.3,3551.3,0.01444924]
[1718223320595,0.01987093,3552.6,3551.5,2.055]
[1718223320753,1.45331607,3552.6,3551.5,2.055]
[1718223320958,1.46620728,3552.5,3551.1,2.055]
[1718223321804,0.03276214,3552.5,3551.2,0.55]
[1718223322092,0.72019709,3552.9,3551.5,2.055]
[1718223322283,0.72019709,3552.9,3551.3,0.2605]
[1718223322284,1.46635211,3552.8,3551.3,0.2605]
[1718223322598,1.46635211,3552.8,3551.4,2.055]
[1718223322781,0.01987093,3552.7,3551.5,0.05630395]
[1718223322982,0.01987093,3552.7,3551.4,2.055]
[1718223322983,1.45331607,3552.7,3551.4,2.055]
[1718223323458,0.03281042,3552.6,3551.4,2.055]
[1718223323656,1.45331607,3552.5,3551.4,2.055]
[1718223323898,0.03281042,3552.6,3551.8,2.055]
[1718223324097,6.7797,3554.2,3552.2,2.055]
[1718223324264,1.43344514,3553.9,3552.2,2.055]
[1718223324462,1.43344514,3552.9,3551.0,0.4479332]
[1718223324680,1.43344514,3552.7,3550.7,2.055]
[1718223324879,0.0330069,3552.6,3551.5,2.055]
[1718223325295,0.01987093,3553.0,3551.5,2.055]
[1718223325469,1.46670829,3552.9,3551.5,2.055]
[1718223325675,0.01987093,3552.8,3550.8,0.2055]
[1718223326004,1.46661175,3552.7,3551.2,2.055]
[1718223326164,0.01987093,3552.6,3551.2,2.055]
[1718223326368,1.43344514,3552.5,3550.2,3.09635046]
[1718223326666,0.01987093,3552.4,3550.7,2.055]
[1718223326871,1.46650613,3552.3,3550.7,2.055]
[1718223327065,0.16850864,3552.2,3550.8,0.2055]
[1718223327273,0.16850864,3552.2,3550.2,3.37855046]
[1718223327274,6.6169,3552.0,3550.2,0.27968046]
[1718223327472,1.45331607,3551.9,3550.3,2.055]
[1718223327777,1.48618391,3551.9,3550.3,2.055]
[1718223329308,1.48618391,3551.9,3550.3,3.181566]
[1718223329515,1.48618391,3551.9,3550.4,3.0]
[1718223329672,0.81030839,3551.8,3550.5,0.9181566]
[1718223329874,1.48608732,3551.7,3550.5,0.9181566]
[1718223330313,0.01987093,3551.6,3549.7,2.73]
[1718223330508,1.46580608,3551.5,3549.8,0.02548432]
[1718223330687,0.01987093,3551.4,3550.0,2.055]
[1718223330881,1.43344514,3551.3,3550.1,0.3181711]
[1718223331089,0.01987093,3551.2,3550.1,0.3181711]
[1718223331289,0.03210908,3551.1,3550.1,0.3181711]
[1718223331698,0.03210908,3551.1,3549.5,0.2055]
[1718223331699,7.0867,3550.9,3549.6,2.055]
[1718223331901,1.43344514,3550.6,3548.3,12.33]
[1718223332073,1.43344514,3550.6,3548.8,1.127023]
[1718223332413,0.0316605,3550.5,3548.8,1.127023]
[1718223332607,1.5799557,3550.4,3548.8,1.127023]
[1718223332915,0.05141751,3550.3,3548.8,1.127023]
[1718223333114,1.43344514,3550.2,3548.8,1.127023]
[1718223333295,0.01987093,3550.1,3548.8,1.127023]
[1718223333476,1.48372783,3550.1,3548.8,1.127023]
[1718223333676,1.48372783,3550.1,3548.9,0.44031825]
[1718223334913,6.7966,3549.9,3548.1,2.73]
[1718223335077,1.45331607,3549.8,3547.8,2.744]
[1718223335404,0.01987093,3549.7,3548.3,1.127191]
[1718223335578,1.43344514,3549.6,3547.9,0.53835973]
[1718223335780,0.01987093,3549.5,3548.0,1.127204]
[1718223335987,1.45331607,3549.5,3548.1,0.44095637]
[1718223336388,0.02978335,3549.4,3548.1,0.44095637]
[1718223336677,0.01987093,3549.3,3548.1,0.44095637]
[1718223337420,1.43344514,3549.5,3548.1,0.44095637]
[1718223337621,1.43344514,3549.5,3548.2,0.45681604]
[1718223337915,1.43344514,3549.4,3548.2,0.45681604]
[1718223338079,1.43344514,3549.4,3548.1,0.44095637]
[1718223338405,0.04907739,3549.3,3548.1,0.44095637]
[1718223338919,0.02920646,3549.3,3548.2,3.35823783]
[1718223339091,0.01987093,3549.8,3548.4,2.744]
[1718223339288,0.01987093,3549.8,3548.5,4.08359594]
[1718223339612,0.01987093,3549.8,3548.6,1.00172873]
[1718223340040,6.7966,3549.9,3548.6,1.00172873]
[1718223340337,6.7966,3549.9,3548.7,0.02792591]
[1718223340544,0.14651056,3550.4,3548.7,0.70987669]
[1718223340743,0.02965506,3550.3,3548.8,3.50416671]
[1718223340883,0.02965506,3550.3,3549.0,2.81767]
[1718223341196,0.02965506,3550.3,3548.9,1.18563597]
[1718223341197,0.02965506,3550.3,3549.4,2.744]
[1718223341526,0.02965506,3550.3,3549.5,7.30306107]
[1718223341527,0.01534574,3550.3,3549.5,7.30306107]
[1718223341735,7.0803,3551.2,3549.8,2.81701]
[1718223341881,0.02958231,3551.1,3549.9,6.86169463]
[1718223342081,0.01987093,3552.3,3550.1,2.81679]
[1718223342328,0.01987093,3552.3,3550.3,2.81662]
[1718223342329,1.46367954,3552.2,3550.3,2.81662]
[1718223342516,0.01987093,3552.1,3550.4,0.60631487]
[1718223342686,1.4634644,3552.0,3550.4,0.60631487]
[1718223342887,0.01987093,3551.9,3550.4,3.60631487]
[1718223343080,7.0803,3552.4,3550.5,4.00907272]
[1718223343081,0.03041047,3551.8,3550.5,4.00907272]
[1718223343313,0.03041047,3551.8,3550.6,3.88851072]
[1718223343510,0.01987093,3552.3,3550.6,3.60631072]
[1718223343713,1.43344514,3552.2,3550.6,3.0]
[1718223343912,0.05058038,3552.1,3550.6,0.49710039]
[1718223344098,0.05058038,3552.1,3550.7,1.7975461]
[1718223344099,0.03070945,3552.1,3550.7,1.7975461]
[1718223344429,6.6677,3553.1,3551.2,2.8159]
[1718223344718,6.6677,3553.1,3551.3,3.0]
[1718223344719,1.45331607,3553.0,3551.3,3.0]
[1718223344924,1.48473022,3553.0,3551.1,3.0]
[1718223345316,1.43344514,3552.9,3551.1,3.0]
[1718223345518,0.86643157,3552.8,3551.1,3.0]
[1718223345704,1.45331607,3552.7,3550.8,3.0]
[1718223345903,1.45331607,3552.7,3550.8,0.49155086]
[1718223346129,0.03122108,3552.6,3550.8,0.49155086]
[1718223346319,1.45331607,3552.5,3550.8,0.49155086]
[1718223346606,1.45331607,3552.5,3550.9,0.7001273]
[1718223346804,1.43344514,3552.2,3550.7,0.69334211]
[1718223347004,1.43344514,3552.2,3550.0,0.68616946]
[1718223347005,0.01987093,3552.1,3550.0,0.68616946]
[1718223347209,1.43344514,3552.0,3550.1,0.50265102]
[1718223347443,0.01987093,3551.9,3549.8,2.744]
[1718223347646,1.43344514,3551.8,3549.8,3.24982329]
[1718223347849,0.01987093,3551.7,3549.8,3.24982329]
[1718223348080,6.7107,3551.5,3549.8,2.744]
[1718223348356,2.30035929,3551.4,3549.9,0.2744]
[1718223348853,2.30035929,3551.4,3549.8,0.27718645]
[1718223349053,2.30035929,3551.4,3549.5,0.13192104]
[1718223349608,2.30035929,3551.4,3549.5,0.41333118]
[1718223349815,2.30035929,3551.4,3549.5,0.13192104]
[1718223350511,6.8463,3551.3,3549.5,0.13192104]
[1718223350718,2.367982,3551.2,3549.5,0.13192104]
[1718223351046,6.8463,3550.8,3549.5,0.13192104]
[1718223351251,1.43344514,3550.6,3549.5,0.13192104]
[1718223351454,0.01987093,3550.5,3549.5,0.13192104]
[1718223351750,8.37194514,3550.4,3549.5,0.13192104]
[1718223351917,0.04866789,3550.3,3549.5,0.13192104]
[1718223352116,2.27550644,3550.2,3549.5,0.13192104]
[1718223352361,0.01987093,3550.1,3549.5,0.13192104]
[1718223352517,1.43344514,3550.0,3549.5,0.13192104]
[1718223352717,0.04818668,3549.9,3549.5,0.13192104]
[1718223352917,1.43344514,3549.8,3549.5,0.13192104]
[1718223353167,0.04808993,3549.7,3549.5,0.13192104]
[1718223353691,0.14815351,3549.6,3549.5,0.13192104]
[1718223353864,0.16802444,3549.6,3549.5,0.13192104]
[1718223354027,0.04891807,3549.6,3549.5,0.13192104]
[1718223355455,1.48236321,3549.6,3549.5,0.13192104]
[1718223355760,8.50126321,3549.6,3549.5,0.13192104]
[1718223356824,7.06781807,3549.6,3549.5,0.13192104]
[1718223357059,9.20804502,3549.6,3549.5,0.13192104]
[1718223357261,9.20804502,3549.6,3548.0,1.127204]
[1718223357465,1.43344514,3549.4,3548.3,0.10757048]
[1718223357672,6.54977093,3549.3,3548.3,0.10757048]
[1718223357876,0.01987093,3549.2,3548.3,0.10757048]
[1718223358177,2.26292322,3549.1,3548.3,0.10757048]
[1718223358384,7.05377093,3549.0,3548.3,0.10757048]
[1718223358680,1.43344514,3548.6,3546.8,7.46]
[1718223358872,0.01987093,3548.5,3546.5,0.44056641]
[1718223359030,0.04754111,3548.5,3546.5,0.44056641]
[1718223359232,6.5525,3548.3,3546.6,0.15683554]
[1718223359565,1.48052278,3548.2,3546.6,0.15683554]
[1718223359740,1.48052278,3548.2,3546.6,0.56060134]
[1718223359943,1.48052278,3548.2,3546.7,0.03088452]
[1718223360155,0.02720671,3548.2,3546.8,3.3038067]
[1718223360480,0.02720671,3548.2,3546.7,0.05637316]
[1718223360481,0.01987093,3548.2,3546.9,3.05637046]
[1718223360631,0.01987093,3548.2,3547.0,3.0]
[1718223360832,1.43344514,3548.1,3547.1,0.35637488]
[1718223361034,6.9784,3549.0,3547.2,2.81911]
[1718223361269,6.9784,3549.0,3546.8,6.3125]
[1718223361270,0.026821,3548.0,3546.8,6.3125]
[1718223361567,6.99827093,3549.0,3546.7,1.127617]
[1718223361568,0.01987093,3548.8,3546.9,3.0]
[1718223361732,0.01987093,3548.8,3547.0,0.09016124]
[1718223361733,1.43344514,3548.7,3547.0,0.09016124]
[1718223361938,0.01987093,3548.6,3547.0,0.09016124]
[1718223362133,1.45950805,3548.5,3547.1,0.05637312]
[1718223362336,0.02606291,3548.5,3547.2,0.09015616]
[1718223362558,0.01987093,3548.9,3547.3,0.05636645]
[1718223362772,1.43344514,3548.8,3547.4,0.09015107]
[1718223362974,0.01987093,3548.7,3547.5,0.05636645]
[1718223363252,1.43344514,3548.6,3547.6,0.09014599]
[1718223363573,0.04607436,3548.5,3547.6,0.09014599]
[1718223363776,7.003,3548.3,3547.6,0.09014599]
[1718223364087,1.47924831,3548.2,3547.6,0.09014599]
[1718223369486,0.04580317,3548.2,3547.6,0.09014599]
[1718223369684,1.43344514,3548.1,3547.6,0.09014599]
[1718223369849,0.02593224,3548.2,3547.6,0.09014599]
[1718223370050,0.02602687,3548.0,3547.6,0.09014599]
[1718223370253,7.0992,3548.8,3547.6,0.09014599]
[1718223370254,0.01987093,3548.7,3547.6,0.09014599]
[1718223370495,1.45331607,3548.7,3547.7,0.05636641]
[1718223370786,2.744,3550.0,3547.6,0.09014599]
[1718223370787,0.02629755,3548.6,3547.8,0.14650452]
[1718223371092,0.02629755,3548.6,3547.9,0.09013837]
[1718223371259,0.01987093,3549.3,3547.9,0.09013837]
[1718223371458,1.43344514,3549.0,3547.9,0.09013837]
[1718223371659,0.01987093,3548.9,3547.9,0.09013837]
[1718223371965,6.4847,3548.7,3547.9,0.09013837]
[1718223372153,2.27627704,3548.6,3547.9,0.09013837]
[1718223373475,1.47980052,3548.6,3547.9,0.09013837]
[1718223374180,0.04635538,3548.6,3547.9,0.09013837]
[1718223374382,0.02648445,3548.6,3547.9,0.09013837]
[1718223374604,0.01987093,3549.2,3547.9,0.09013837]
[1718223374968,0.02494406,3549.1,3547.9,2.83413837]
[1718223375303,6.6873,3549.6,3548.0,3.86528284]
[1718223375500,1.45331607,3549.5,3548.0,3.86528284]
[1718223375703,1.47864886,3549.5,3548.0,3.86528284]
[1718223376632,1.47864886,3549.5,3548.1,3.0]
[1718223376794,1.47864886,3549.5,3547.9,0.09013837]
[1718223377631,1.47864886,3549.5,3548.0,0.05636049]
[1718223377919,1.47864886,3549.5,3547.9,0.09013837]
[1718223378131,1.45331607,3549.5,3547.9,0.09013837]
[1718223378439,1.45331607,3549.5,3547.9,1.03787721]
[1718223378440,0.81406161,3549.4,3547.9,1.03787721]
[1718223378722,1.45331607,3549.3,3547.9,1.03787721]
[1718223378927,0.01987093,3549.2,3547.9,1.03787721]
[1718223379087,0.01987093,3549.2,3548.0,0.05636063]
[1718223379414,0.01987093,3549.3,3548.0,0.05636063]
[1718223379777,0.01987093,3549.3,3547.9,4.03787721]
[1718223379991,0.01987093,3549.3,3548.0,0.68565072]
[1718223380200,0.01987093,3549.3,3548.1,0.03269699]
[1718223380423,0.01987093,3549.3,3548.1,0.05635528]
[1718223380634,6.6873,3549.6,3548.1,0.05635528]
[1718223380635,0.01987093,3549.5,3548.1,0.05635528]
[1718223380821,1.43344514,3549.4,3548.1,0.05635528]
[1718223380995,6.6873,3549.6,3548.1,0.05635528]
[1718223380996,6.6873,3549.6,3548.2,0.47798832]
[1718223381329,0.01987093,3549.5,3548.3,0.05635104]
[1718223381636,0.02533442,3549.4,3548.3,0.05635104]
[1718223382431,0.02533442,3549.4,3548.2,3.47798832]
[1718223382626,0.02533442,3549.4,3548.3,2.87451965]
[1718223382833,0.02533442,3549.4,3548.4,3.68908677]
[1718223383034,0.01987093,3550.0,3548.6,5.86231]
[1718223383196,5.713,3551.3,3548.7,3.60634178]
[1718223383197,6.5499,3551.2,3548.7,3.60634178]
[1718223383393,1.43344514,3550.9,3548.8,0.05634178]
[1718223383593,0.0460979,3550.8,3548.9,2.81776]
[1718223383825,1.58139944,3550.7,3549.0,3.69874935]
[1718223384028,0.01987093,3550.6,3549.1,2.81758]
[1718223384213,0.04542372,3550.6,3549.2,3.0]
[1718223384421,0.01987093,3550.6,3549.2,3.0]
[1718223386598,0.01987093,3550.6,3549.0,4.16410021]
[1718223386800,0.01987093,3550.6,3549.1,0.55]
[1718223387058,0.01987093,3550.6,3549.2,0.77403002]
[1718223387200,6.5499,3551.2,3549.4,2.744]
[1718223387400,1.45331607,3551.1,3549.5,3.0563321]
[1718223387861,1.45331607,3551.1,3549.5,3.0]
[1718223388952,1.45331607,3551.1,3549.4,3.0]
[1718223389135,2.25363768,3551.1,3549.5,0.71131101]
[1718223389650,0.02499014,3551.0,3549.5,0.71131101]
[1718223389853,1.45331607,3550.9,3549.6,0.0563359]
[1718223390222,0.0248935,3550.8,3549.6,6.1006359]
[1718223390421,1.43344514,3550.9,3549.7,1.16619259]
[1718223391349,0.01987093,3550.8,3549.7,1.16619259]
[1718223391717,1.43344514,3550.7,3549.6,3.0]
[1718223392050,0.04463191,3550.6,3549.3,0.28530232]
[1718223392348,1.43344514,3550.5,3549.1,3.0]
[1718223392655,0.01987093,3550.4,3549.1,3.0]
[1718223392852,1.57877675,3550.3,3549.1,3.60443]
[1718223393170,0.01987093,3550.2,3549.1,3.60443]
[1718223393334,1.45331607,3550.2,3549.1,3.60443]
[1718223393867,0.01987093,3550.2,3549.1,3.60443]
[1718223394062,0.01987093,3551.1,3549.2,0.05634168]
[1718223394222,1.43344514,3551.0,3549.3,1.02961448]
[1718223394539,0.01987093,3550.9,3549.3,0.97327618]
[1718223394858,1.43344514,3550.8,3549.3,0.97327618]
[1718223395159,0.01987093,3550.7,3549.3,0.97327618]
[1718223395323,1.57877675,3550.6,3549.4,0.39732762]
[1718223395525,0.01987093,3550.5,3549.4,0.39732762]
[1718223395725,1.45331607,3550.5,3549.4,0.39732762]
[1718223396066,0.65499,3551.1,3549.5,0.05633802]
[1718223396219,2.10830607,3551.1,3549.6,0.55]
[1718223396418,2.10830607,3551.1,3549.7,0.20814885]
[1718223396662,2.10830607,3551.1,3549.7,0.15182145]
[1718223397036,1.45331607,3551.1,3549.7,0.15182145]
[1718223397863,1.45331607,3551.1,3549.8,0.05632743]
[1718223398061,1.45331607,3551.1,3549.7,0.15182145]
[1718223398568,1.45331607,3551.1,3549.8,0.05632742]
[1718223399249,6.5499,3551.2,3549.9,0.55]
[1718223399454,6.5499,3551.2,3550.0,0.41385165]
[1718223400277,6.7191,3551.8,3550.2,2.81673]
[1718223400568,0.01987093,3551.7,3550.3,3.60631588]
[1718223400773,0.01987093,3551.7,3550.4,0.41073809]
[1718223402663,6.7191,3551.8,3550.5,0.05631591]
[1718223402955,6.7191,3551.8,3550.6,0.55]
[1718223403263,6.7191,3551.8,3550.7,0.05631156]
[1718223403464,3.0,3553.0,3550.8,0.55]
[1718223403465,6.246,3552.9,3550.8,0.55]
[1718223403774,1.45331607,3552.8,3550.9,0.15994791]
[1718223403930,0.01987093,3552.7,3550.9,0.15994791]
[1718223404131,1.43344514,3552.6,3550.9,0.15994791]
[1718223404447,0.01987093,3552.5,3550.9,0.15994791]
[1718223404641,6.3506,3552.3,3550.9,0.15994791]
[1718223404845,6.3506,3552.3,3550.2,2.81672]
[1718223404846,1.45331607,3552.2,3550.3,3.0]
[1718223405054,1.45331607,3552.2,3550.5,0.55]
[1718223405251,1.45331607,3552.2,3550.3,3.0]
[1718223405456,1.45331607,3552.2,3550.1,0.2822]
[1718223405457,1.45331607,3552.2,3550.1,3.0]
[1718223407030,1.45331607,3552.2,3550.4,0.68798773]
[1718223407235,0.79526001,3552.1,3550.4,0.68798773]
[1718223407438,1.45331607,3552.0,3550.4,0.68798773]
[1718223409957,1.45331607,3552.0,3550.5,0.60631866]
[1718223410266,1.45331607,3552.0,3550.5,0.55]
[1718223413034,6.8622,3551.9,3550.4,3.41073809]
[1718223413259,2.36439368,3551.8,3550.4,0.41073809]
[1718223413442,0.01987093,3551.7,3550.4,0.41073809]
[1718223413645,1.45331607,3551.7,3550.4,0.41073809]
[1718223413878,1.43344514,3551.6,3550.0,2.41352789]
[1718223414084,6.44917093,3551.5,3549.6,9.516]
[1718223414251,1.43344514,3551.4,3549.7,0.51058237]
[1718223414456,1.43344514,3551.4,3549.6,2.34542615]
[1718223414457,0.01987093,3551.3,3549.6,2.34542615]
[1718223414662,1.43344514,3551.2,3549.7,0.34721972]
[1718223415146,0.78826161,3551.3,3549.7,3.85938862]
[1718223415475,6.4293,3551.5,3549.7,3.85938862]
[1718223415476,6.4293,3551.5,3550.0,2.056]
[1718223415676,1.43344514,3551.4,3550.0,2.056]
[1718223417781,0.01987093,3551.3,3550.0,2.056]
[1718223419000,6.4293,3551.5,3550.0,2.056]
[1718223419001,6.4293,3551.5,3550.1,0.60632357]
[1718223419198,0.01987093,3551.4,3550.1,3.55]
[1718223419347,0.01987093,3551.4,3550.2,1.22357159]
[1718223419542,6.4293,3551.5,3550.4,2.056]
[1718223419750,2.056,3552.9,3550.5,0.05631463]
[1718223419945,6.6213,3552.6,3550.5,0.05631463]
[1718223420276,6.6213,3552.6,3550.9,2.81614]
[1718223420277,0.82733254,3552.5,3550.9,2.81614]
[1718223420457,0.82733254,3552.5,3551.0,3.55]
[1718223420652,1.43344514,3552.4,3551.0,3.0]
[1718223420852,0.01987093,3552.3,3550.8,2.056]
[1718223421080,0.01987093,3552.3,3550.8,2.55072189]
[1718223421280,0.9080787,3552.3,3550.9,3.92104431]
[1718223421511,7.85874514,3552.2,3550.9,3.92104431]
[1718223421708,7.85874514,3552.2,3550.5,0.2822]
[1718223421709,0.01987093,3552.1,3550.5,3.0]
[1718223422017,1.43344514,3552.0,3550.4,5.056]
[1718223422300,0.01987093,3551.9,3550.4,2.056]
[1718223422472,1.43344514,3551.8,3550.4,2.056]
[1718223422672,0.01987093,3551.7,3550.4,2.056]
[1718223422874,0.01987093,3551.7,3550.5,0.68641806]
[1718223423110,0.01987093,3551.7,3550.5,3.68641806]
[1718223423316,7.70194514,3551.6,3550.2,0.58460896]
[1718223423468,0.01987093,3551.5,3550.0,0.8697247]
[1718223423668,1.43344514,3551.4,3549.9,0.58460896]
[1718223423900,0.79205254,3551.3,3550.0,0.14615224]
[1718223424109,1.45331607,3551.2,3549.7,0.28816662]
[1718223424278,1.45331607,3551.2,3549.7,0.58460896]
[1718223424668,1.45331607,3551.2,3549.6,0.58460896]
[1718223424884,1.45331607,3551.2,3549.5,3.76737996]
[1718223425142,6.5212,3551.1,3549.5,2.33769191]
[1718223425414,2.25076768,3551.0,3549.5,3.375922]
[1718223426209,7.72081607,3550.9,3549.6,0.05634173]
[1718223427223,6.2675,3550.9,3549.7,0.51534225]
[1718223427426,6.2675,3550.9,3549.9,0.58460896]
[1718223427596,6.2675,3550.9,3549.9,3.0]
[1718223427798,6.2675,3550.9,3550.0,0.55268646]
[1718223429027,6.2675,3550.9,3550.1,0.05632331]
[1718223429228,4.16797022,3552.1,3550.1,0.05632331]
[1718223429229,6.6352,3551.8,3550.1,0.05632331]
[1718223429401,1.43344514,3551.7,3550.0,1.13729542]
[1718223429608,0.01987093,3551.6,3550.1,0.0563228]
[1718223429907,2.24229675,3551.5,3550.0,1.13729542]
[1718223430104,0.01987093,3551.4,3550.1,0.58460896]
[1718223430303,1.45331607,3551.4,3550.2,0.05632281]
[1718223430504,1.45331607,3551.4,3550.3,0.05632281]
[1718223431544,1.45331607,3551.4,3550.3,0.64093177]
[1718223431722,1.45331607,3551.4,3550.4,0.64742957]
[1718223431929,1.45331607,3551.4,3550.5,0.05632281]
[1718223432854,6.6352,3551.8,3550.5,0.05632281]
[1718223433166,6.6352,3551.8,3550.5,0.64093177]
[1718223433641,6.6352,3551.8,3550.7,0.58460896]
[1718223433847,6.7178,3552.3,3550.8,0.86278046]
[1718223434036,6.7178,3552.3,3550.9,0.58460896]
[1718223434037,8.15124514,3552.3,3550.9,0.58460896]
[1718223434208,8.15124514,3552.3,3551.0,0.05630834]
[1718223434544,8.15124514,3552.3,3551.1,0.81404918]
[1718223434849,0.01987093,3552.2,3551.2,0.05630836]
[1718223435049,6.7178,3552.3,3551.3,0.05630838]
[1718223435529,0.01987093,3552.2,3551.3,0.05630838]
[1718223436103,0.01987093,3552.2,3551.2,0.05630697]
[1718223436307,6.7178,3552.3,3551.3,0.14549651]
[1718223437460,1.45331607,3552.2,3551.2,3.0]
[1718223437675,1.45331607,3552.2,3551.0,0.28656716]
[1718223438159,1.45331607,3552.2,3550.4,1.16921792]
[1718223438160,1.45331607,3552.2,3550.6,3.58460896]
[1718223438363,1.45331607,3552.2,3550.5,0.58460896]
[1718223438668,0.90470937,3552.1,3550.6,1.0307612]
[1718223438827,1.45331607,3552.0,3550.6,1.0307612]
[1718223439028,1.45331607,3552.0,3550.7,0.58460896]
[1718223439566,8.16281607,3551.9,3550.7,0.58460896]
[1718223439721,8.16281607,3551.9,3550.4,0.58460896]
[1718223440061,8.16281607,3551.9,3549.9,4.49481172]
[1718223440062,0.90675254,3551.8,3550.1,0.86813472]
[1718223440262,9.03879373,3551.9,3550.1,0.86813472]
[1718223440263,0.87597766,3551.9,3550.5,2.742]
[1718223440438,0.01987093,3551.8,3550.7,0.58460896]
[1718223440651,1.45331607,3551.8,3550.7,0.58460896]
[1718223440972,6.5582,3551.7,3550.6,0.58460896]
[1718223441133,0.01987093,3551.6,3550.5,3.0]
[1718223441334,0.82102254,3551.6,3550.5,0.74615224]
[1718223441540,0.82102254,3551.6,3550.4,3.0]
[1718223441743,0.82102254,3551.6,3550.3,0.58460896]
[1718223441981,1.43344514,3551.5,3550.5,0.58460896]
[1718223442155,0.01987093,3551.4,3550.5,0.58460896]
[1718223442364,1.45331607,3551.4,3550.5,0.58460896]
[1718223442551,1.45331607,3551.4,3550.5,1.04332777]
[1718223443369,1.45331607,3551.4,3550.5,0.58460896]
[1718223443617,1.45331607,3551.4,3550.5,3.0]
[1718223444119,6.5582,3551.7,3550.6,0.05632253]
[1718223444471,6.5582,3551.7,3550.6,0.64093149]
[1718223444965,6.5582,3551.7,3550.7,0.58460896]
[1718223445173,6.5582,3551.7,3550.8,0.44615224]
[1718223445908,0.01987093,3551.6,3550.8,0.44615224]
[1718223446109,1.43344514,3551.5,3550.6,0.58460896]
[1718223446281,0.01987093,3551.4,3550.6,0.58460896]
[1718223446488,0.01987093,3551.4,3550.4,3.58460896]
[1718223446718,0.01987093,3551.4,3550.5,3.44615224]
[1718223447042,6.5582,3551.7,3550.6,0.05632224]
[1718223447219,0.01987093,3551.6,3550.6,3.0]
[1718223447375,0.01987093,3551.6,3550.6,3.58460896]
[1718223447570,1.43344514,3551.2,3550.3,0.58460896]
[1718223447780,1.43344514,3551.2,3550.1,0.28174081]
[1718223447781,6.71961544,3551.1,3550.1,0.58460896]
[1718223448118,1.43344514,3551.0,3549.7,0.58460896]
[1718223448320,1.43344514,3551.0,3549.6,0.58460896]
[1718223448321,0.01987093,3550.9,3549.6,0.58460896]
[1718223448524,1.43344514,3550.8,3549.6,0.58460896]
[1718223448710,0.01987093,3550.7,3549.6,0.58460896]
[1718223448905,0.01987093,3550.7,3549.7,0.62475224]
[1718223449295,7.98984514,3550.6,3549.5,0.58460896]
[1718223449605,7.98984514,3550.6,3549.1,1.16921792]
[1718223449606,0.01987093,3550.5,3549.1,0.58460896]
[1718223449814,1.43344514,3550.4,3549.1,0.58460896]
[1718223450017,1.43344514,3550.4,3548.9,8.33691344]
[1718223450018,0.01987093,3550.3,3548.9,8.04460896]
[1718223450200,1.43344514,3550.2,3548.9,0.58460896]
[1718223450403,0.01987093,3550.1,3549.0,0.9363612]
[1718223450713,0.01987093,3550.1,3549.0,0.35175224]
[1718223450714,1.45331607,3550.1,3549.0,0.35175224]